bitfinex/quotes_ETHUSD_20250318
["timestamp","ask_amount","ask_price","bid_price","bid_amount"]
[1742304723471,4.67948644,1901.5,1901.4,40.25924]
[1742304723670,4.67948644,1901.5,1901.3,5.25934]
[1742304723984,3.46794864,1901.5,1901.4,5.25928]
[1742304724124,27.84678644,1901.8,1901.7,5.25845]
[1742304724329,5.25887,1901.6,1901.1,40.26]
[1742304724559,7.67948644,1901.2,1901.1,35.0]
[1742304724727,4.67948644,1901.2,1900.8,5.26082]
[1742304724927,3.0,1900.8,1900.6,5.26143]
[1742304725259,3.0,1900.8,1900.7,5.26121]
[1742304726453,3.0,1900.8,1900.6,5.26137]
[1742304726651,3.0,1900.8,1900.7,5.26121]
[1742304727840,3.0,1900.8,1900.6,5.26142]
[1742304728055,7.67948644,1900.7,1900.6,5.26142]
[1742304728770,3.0,1900.7,1900.6,5.26142]
[1742304729850,12.92448644,1901.3,1901.2,5.25983]
[1742304730052,3.0,1901.2,1901.0,10.52046]
[1742304730244,3.0,1901.2,1901.0,5.26018]
[1742304730445,7.67948644,1901.1,1901.0,5.26018]
[1742304731760,7.67948644,1901.1,1900.9,5.26064]
[1742304731961,3.0,1901.1,1901.0,5.26038]
[1742304732475,5.247,1901.3,1901.2,5.25983]
[1742304732640,8.247,1901.3,1901.2,6.05593]
[1742304732843,4.67948644,1901.6,1901.5,5.259]
[1742304733141,17.411,1901.8,1901.6,5.25848]
[1742304733345,17.411,1901.8,1901.7,5.25845]
[1742304733577,22.09048644,1901.8,1901.7,5.25845]
[1742304734242,22.09048644,1901.8,1901.4,5.25909]
[1742304734475,3.0,1901.5,1901.3,5.25955]
[1742304734676,7.67948644,1901.4,1901.3,5.25955]
[1742304735176,6.47254,1901.3,1901.2,5.25983]
[1742304735365,3.0,1901.3,1901.1,5.26008]
[1742304735567,3.0,1901.1,1900.9,5.2604]
[1742304735776,4.73106514,1901.0,1900.8,5.26067]
[1742304735958,3.0,1900.9,1900.8,5.26067]
[1742304736164,3.05120515,1900.9,1900.8,5.26067]
[1742304736872,3.05120515,1900.9,1900.6,5.26146]
[1742304737198,0.30512051,1900.8,1900.7,5.26121]
[1742304737505,4.73069159,1900.9,1900.8,5.26094]
[1742304737665,4.67948644,1900.9,1900.8,5.26094]
[1742304737847,4.73069159,1900.9,1900.8,5.26094]
[1742304738052,0.5353,1900.8,1900.2,0.8065]
[1742304738282,7.67948644,1900.6,1900.4,5.26178]
[1742304738783,0.05120515,1900.5,1900.4,5.26178]
[1742304740452,0.82427431,1900.5,1900.3,5.26222]
[1742304740654,4.67948644,1900.4,1900.3,5.26222]
[1742304741062,3.0,1900.3,1900.2,5.26255]
[1742304741272,3.0,1900.3,1900.1,5.26276]
[1742304741476,8.26276,1900.1,1899.6,0.7709]
[1742304741674,4.67948644,1899.8,1899.6,40.26409]
[1742304741873,12.93748644,1899.8,1899.7,5.26398]
[1742304742050,3.0,1899.7,1899.4,6.03553]
[1742304742258,7.67948644,1899.5,1899.4,40.26463]
[1742304742463,7.67948644,1899.5,1899.4,5.26463]
[1742304743068,3.0,1899.5,1899.4,6.05173]
[1742304743264,3.0,1899.8,1899.7,5.26398]
[1742304743551,22.686,1900.2,1900.0,5.26315]
[1742304743759,7.67948644,1900.1,1900.0,5.26315]
[1742304744164,4.67948644,1900.3,1900.1,5.26288]
[1742304744364,4.67948644,1900.5,1900.4,5.26205]
[1742304744566,5.282,1900.6,1900.5,5.26177]
[1742304744771,4.67948644,1900.7,1900.6,5.26149]
[1742304745056,0.5353,1901.2,1900.8,5.26094]
[1742304745256,4.67948644,1901.0,1900.7,5.26112]
[1742304745462,11.08624,1901.2,1900.8,5.26094]
[1742304745791,3.0,1901.1,1900.9,5.26058]
[1742304746088,5.288,1901.2,1901.1,5.25987]
[1742304746296,9.96748644,1901.2,1901.1,5.25987]
[1742304746668,12.96748644,1901.2,1901.1,5.25987]
[1742304746969,9.96748644,1901.2,1901.1,5.25987]
[1742304747166,10.96423508,1901.2,1900.6,0.7542]
[1742304747370,10.96423508,1901.2,1900.7,5.26099]
[1742304747371,4.67948644,1900.8,1900.7,5.26099]
[1742304747590,7.67948644,1900.8,1900.6,5.26139]
[1742304747771,4.67948644,1900.8,1900.6,5.26135]
[1742304748092,9.98048644,1900.8,1900.6,5.26128]
[1742304748294,0.99674864,1901.2,1901.0,5.26038]
[1742304748468,0.5353,1901.5,1900.8,0.7647]
[1742304748667,4.67948644,1901.3,1901.1,5.26006]
[1742304748871,5.8863,1901.5,1900.8,6.02562]
[1742304749192,10.56578644,1901.5,1901.3,5.25937]
[1742304749395,0.05025412,1901.4,1901.3,5.25937]
[1742304750098,5.25996,1901.2,1900.8,5.26087]
[1742304750262,5.25996,1901.2,1900.7,5.26105]
[1742304750263,3.0,1901.0,1900.9,10.52107]
[1742304750590,3.05065038,1901.0,1900.9,10.52107]
[1742304750992,3.05065038,1901.0,1900.9,5.26043]
[1742304751179,7.73013682,1901.0,1900.9,5.26043]
[1742304751385,3.05065038,1901.0,1900.9,5.26043]
[1742304751793,7.73013682,1901.0,1900.9,5.26043]
[1742304751979,9.0389505,1901.0,1900.8,5.26076]
[1742304752292,7.73013682,1901.0,1900.9,5.26066]
[1742304752992,3.05065038,1901.0,1900.9,5.26066]
[1742304753392,3.05065038,1901.0,1900.9,6.04406]
[1742304754402,0.05065038,1901.0,1900.9,6.04406]
[1742304754811,8.349,1901.4,1901.3,5.25955]
[1742304755022,3.0,1901.4,1901.3,5.25955]
[1742304755307,3.0,1901.4,1901.2,5.25964]
[1742304755513,17.406,1901.5,1901.4,5.25928]
[1742304755712,4.67948644,1901.7,1901.4,5.25928]
[1742304755868,3.0,1901.4,1901.3,5.25952]
[1742304756561,7.67948644,1901.7,1901.6,5.25872]
[1742304756920,5.362,1901.8,1901.7,5.25819]
[1742304757124,4.67948644,1901.9,1901.8,5.25817]
[1742304757269,10.04148644,1901.9,1901.8,5.25817]
[1742304757615,10.56296508,1901.9,1901.7,5.25821]
[1742304757914,3.0,1901.8,1901.5,5.25882]
[1742304758112,3.0,1901.5,1901.4,5.25928]
[1742304760812,3.04954342,1901.5,1901.4,5.25928]
[1742304762677,0.04954342,1901.5,1901.4,5.25928]
[1742304763101,7.67948644,1901.8,1901.6,5.25861]
[1742304763293,0.76794864,1901.7,1901.6,5.25861]
[1742304763495,7.67948644,1901.8,1901.7,5.25845]
[1742304763695,13.01648644,1901.8,1901.6,5.25867]
[1742304763895,13.01648644,1901.8,1901.7,5.25845]
[1742304765324,13.01648644,1901.8,1901.6,5.25867]
[1742304765997,13.01648644,1901.8,1901.6,5.25872]
[1742304766195,1.30164864,1901.7,1901.4,5.25917]
[1742304766376,3.0,1901.5,1901.4,5.25917]
[1742304767100,3.0,1901.3,1900.9,0.8138]
[1742304767282,3.0,1900.9,1900.8,5.26094]
[1742304767988,3.0,1901.3,1901.2,5.25983]
[1742304768188,4.30164864,1901.7,1901.6,5.25872]
[1742304768388,0.5353,1902.0,1901.6,5.25872]
[1742304768610,4.67948644,1901.9,1901.6,5.25861]
[1742304768781,4.67948644,1901.7,1901.4,6.08915]
[1742304768981,4.67948644,1901.7,1901.5,5.25889]
[1742304769196,8.354,1901.7,1901.6,5.25872]
[1742304770037,3.0,1901.7,1901.6,5.25872]
[1742304771324,7.67948644,1901.7,1901.6,5.25872]
[1742304771639,3.0,1901.6,1901.4,5.25923]
[1742304771838,4.67948644,1901.5,1901.4,5.25923]
[1742304772230,3.0,1901.5,1901.4,5.25928]
[1742304772935,2.97,1901.5,1901.4,5.25928]
[1742304773312,2.97,1901.5,1901.4,7.081062]
[1742304773811,5.358,1901.9,1901.8,5.25817]
[1742304774345,5.358,1901.9,1901.7,5.25835]
[1742304774551,5.358,1901.9,1901.8,5.25817]
[1742304775049,3.0,1901.8,1901.7,5.25825]
[1742304775901,3.0,1901.9,1901.8,5.25807]
[1742304776107,17.399,1902.1,1902.0,5.25762]
[1742304776306,5.21478644,1902.3,1902.2,5.25707]
[1742304776641,5.975589,1902.2,1902.0,5.25742]
[1742304776841,3.0,1902.2,1902.1,5.25734]
[1742304777743,3.0,1902.2,1902.0,5.25753]
[1742304777944,7.67948644,1902.1,1902.0,5.25753]
[1742304778472,3.0,1902.0,1901.9,5.25786]
[1742304778659,5.44743508,1902.1,1901.9,10.51555]
[1742304778866,5.44743508,1902.1,1902.0,5.25762]
[1742304779246,3.0,1902.2,1902.1,5.25734]
[1742304780469,5.8863,1902.4,1902.3,5.25679]
[1742304780656,3.0,1902.3,1902.2,5.25696]
[1742304780861,7.67948644,1902.3,1902.2,5.25696]
[1742304781059,0.5353,1902.6,1902.0,6.04119]
[1742304781261,10.55304344,1902.7,1902.5,10.51234]
[1742304781579,10.55304344,1902.7,1902.6,5.25596]
[1742304781782,3.0,1902.6,1902.5,5.2561]
[1742304782491,4.67948644,1902.9,1902.8,5.25518]
[1742304782669,17.396,1903.0,1902.9,5.25513]
[1742304782983,3.0,1903.2,1902.9,5.25488]
[1742304783199,3.0,1903.0,1902.9,10.50983]
[1742304783482,10.03748644,1903.3,1903.1,5.25439]
[1742304783703,7.67948644,1903.2,1902.9,5.25486]
[1742304783980,3.0,1903.1,1903.0,5.25473]
[1742304784190,5.358,1903.3,1903.2,5.2543]
[1742304784652,8.358,1903.3,1903.2,5.2543]
[1742304784993,3.0,1903.2,1903.1,5.25452]
[1742304785491,4.67948644,1903.6,1903.2,6.02419]
[1742304785704,3.0,1903.3,1903.1,5.25456]
[1742304785910,4.67948644,1903.2,1903.0,0.7699]
[1742304786059,4.97948644,1903.2,1903.0,11.27921]
[1742304786390,4.67948644,1903.2,1903.1,5.25458]
[1742304786575,8.376,1903.3,1903.2,5.2543]
[1742304787352,8.376,1903.3,1903.1,5.25458]
[1742304787353,3.0,1903.5,1903.4,5.25356]
[1742304787887,10.06048644,1903.7,1903.6,5.2532]
[1742304788108,4.67948644,1903.7,1903.6,5.2532]
[1742304788256,4.67948644,1904.0,1903.7,5.25292]
[1742304788459,22.07148644,1904.1,1903.9,5.25232]
[1742304788656,6.02,1904.5,1904.1,5.25165]
[1742304789015,4.67948644,1904.4,1904.3,5.25127]
[1742304789485,22.06848644,1904.7,1904.6,5.25044]
[1742304789687,17.389,1904.7,1904.6,5.25044]
[1742304790068,20.389,1904.7,1904.6,5.25044]
[1742304790265,5.405,1904.8,1904.7,5.25017]
[1742304790463,6.41444864,1904.8,1904.7,5.25017]
[1742304790795,0.01,1904.9,1904.8,5.24989]
[1742304790997,0.01,1904.9,1904.8,6.02009]
[1742304791196,1e-05,1904.9,1904.8,6.02009]
[1742304791362,6.6e-06,1905.7,1904.9,0.55]
[1742304791563,6.6e-06,1905.7,1905.6,6.01789]
[1742304791794,6.6e-06,1905.7,1905.3,5.24826]
[1742304791995,0.4679559,1905.7,1905.5,5.24782]
[1742304792198,4.67949304,1905.7,1905.6,5.24769]
[1742304792507,4.67949304,1905.7,1905.6,40.24769]
[1742304792695,4.73188887,1905.7,1905.6,40.24769]
[1742304793139,0.05240243,1905.7,1905.6,40.24769]
[1742304794437,0.05240243,1905.7,1905.6,44.874072]
[1742304794633,0.05240243,1905.7,1905.6,40.24769]
[1742304795634,5.20040243,1905.9,1905.6,40.24768]
[1742304795843,5.20040243,1905.9,1905.8,5.24714]
[1742304796021,5.20040243,1905.9,1905.6,35.0]
[1742304796022,5.20040243,1905.9,1905.7,10.49438]
[1742304796195,3.0,1905.8,1905.7,5.24716]
[1742304796706,3.0,1905.8,1905.6,5.24761]
[1742304797293,3.0,1905.8,1905.7,5.24741]
[1742304797814,8.436,1906.0,1905.9,5.24661]
[1742304798018,3.0,1905.9,1905.8,5.24704]
[1742304798217,3.0,1905.9,1905.7,5.2473]
[1742304798632,3.0,1905.9,1905.7,5.24721]
[1742304798831,3.0,1905.9,1905.8,5.24714]
[1742304799219,17.384,1906.2,1906.0,5.24658]
[1742304799424,4.98463437,1906.4,1906.3,5.24576]
[1742304799620,0.49846344,1906.4,1905.9,0.7604]
[1742304799953,10.23031437,1906.4,1906.0,5.24658]
[1742304800153,3.0,1906.0,1905.8,5.2471]
[1742304800355,8.442,1906.0,1905.8,10.49407]
[1742304800556,8.442,1906.0,1905.7,5.24737]
[1742304800764,8.442,1906.0,1905.6,5.24754]
[1742304800765,13.68871,1906.0,1905.6,5.24754]
[1742304801056,3.0,1905.7,1905.5,5.24791]
[1742304801222,3.0,1905.7,1905.5,5.24796]
[1742304801423,3.0,1905.7,1905.6,5.24769]
[1742304802252,3.0,1905.9,1905.8,5.24714]
[1742304802424,5.23472454,1905.9,1905.8,5.24714]
[1742304802632,3.0,1905.9,1905.8,5.24714]
[1742304803165,3.0,1905.7,1905.6,5.24768]
[1742304803369,3.0,1905.8,1905.6,10.49516]
[1742304803552,3.0,1905.8,1905.7,5.24741]
[1742304803733,23.20026734,1906.0,1905.8,5.24714]
[1742304803734,22.806,1906.0,1905.8,5.24714]
[1742304803941,3.0,1905.9,1905.8,5.24714]
[1742304804127,3.0,1905.9,1905.7,5.24732]
[1742304804327,7.98463437,1905.9,1905.7,10.49455]
[1742304804554,7.98463437,1905.9,1905.7,5.2473]
[1742304804863,7.98463437,1905.9,1905.7,5.24728]
[1742304805457,7.98463437,1905.9,1905.6,5.2475]
[1742304805865,7.98463437,1905.9,1905.7,5.24737]
[1742304806062,7.98463437,1905.9,1905.7,5.24726]
[1742304806566,17.368,1906.0,1905.8,5.24714]
[1742304807097,3.0,1905.9,1905.7,5.24734]
[1742304807278,3.0,1905.9,1905.6,10.49522]
[1742304807456,3.0,1905.9,1905.8,5.24714]
[1742304807657,5.62815702,1905.9,1905.7,5.2474]
[1742304808782,5.62815702,1905.9,1905.8,5.24714]
[1742304808983,3.0,1905.9,1905.8,5.24714]
[1742304809489,4.383433,1905.8,1905.6,5.24757]
[1742304809790,3.0,1905.9,1905.6,5.24757]
[1742304809957,3.0,1905.9,1905.7,5.24725]
[1742304810158,3.0,1905.9,1905.8,5.24714]
[1742304810869,4.98463437,1906.3,1906.2,5.24603]
[1742304811072,10.41563437,1906.3,1906.2,5.24603]
[1742304811267,12.70392781,1906.3,1906.2,5.24603]
[1742304811589,5.24506,1906.6,1906.1,5.24611]
[1742304811590,1.0287951,1906.6,1906.5,5.24521]
[1742304811962,1.0287951,1906.6,1906.5,40.24521]
[1742304812161,1.0287951,1906.6,1906.5,35.0]
[1742304812362,9.8090251,1906.6,1906.5,35.0]
[1742304812694,8.78023,1906.6,1906.5,35.0]
[1742304812855,11.22619044,1906.6,1906.5,35.0]
[1742304813168,5.98126044,1906.6,1906.5,35.0]
[1742304813376,5.454,1906.6,1906.5,40.24521]
[1742304813968,4.98463437,1906.7,1906.6,5.24493]
[1742304814167,10.43663437,1906.7,1906.6,5.24493]
[1742304814406,10.43663437,1906.7,1906.5,35.0]
[1742304814407,6.985037,1906.6,1906.5,35.0]
[1742304814620,3.0,1906.6,1906.5,35.0]
[1742304814831,8.78023,1906.6,1906.5,35.0]
[1742304815032,8.78023,1906.6,1906.1,10.49244]
[1742304815235,5.16744986,1906.2,1906.1,5.24615]
[1742304815399,8.16744986,1906.2,1906.1,5.24615]
[1742304815730,8.16744986,1906.2,1906.1,40.24615]
[1742304815937,3.0,1906.2,1906.1,44.795413]
[1742304816326,3.0,1906.2,1906.1,45.569413]
[1742304816633,6.50566344,1906.7,1906.1,45.569413]
[1742304816634,5.16744986,1906.6,1906.5,5.24517]
[1742304817913,1.06278311,1906.9,1906.8,5.24438]
[1742304818141,5.16744986,1906.9,1906.8,5.24438]
[1742304818520,8.16744986,1906.9,1906.8,5.24438]
[1742304819337,5.24212,1907.7,1906.8,5.24438]
[1742304819338,5.16744986,1907.4,1907.3,5.24282]
[1742304819537,5.16744986,1907.4,1907.3,35.0]
[1742304820103,5.70274986,1907.4,1907.3,35.0]
[1742304820435,10.41017986,1907.4,1907.3,35.0]
[1742304820611,5.16744986,1907.4,1907.3,35.0]
[1742304820814,6.75826585,1907.4,1907.3,35.0]
[1742304821021,10.66844986,1907.4,1907.3,35.0]
[1742304821213,8.16744986,1907.4,1907.3,40.24301]
[1742304821429,8.16744986,1907.4,1907.3,35.0]
[1742304821627,5.16744986,1907.4,1907.3,40.24301]
[1742304821849,8.16744986,1907.4,1907.3,40.24301]
[1742304822224,5.16744986,1907.4,1907.3,40.24301]
[1742304822558,9.23459485,1907.4,1907.3,35.0]
[1742304822766,14.47732485,1907.4,1907.3,35.0]
[1742304823059,3.0,1907.3,1906.7,0.8195]
[1742304823244,3.0,1907.3,1907.2,5.24328]
[1742304823450,5.16744986,1907.4,1907.3,5.24301]
[1742304823631,5.16744986,1907.4,1906.8,40.24422]
[1742304823632,3.0,1907.3,1907.0,5.24362]
[1742304823830,8.16744986,1907.1,1907.0,5.24362]
[1742304824035,8.21852835,1907.1,1907.0,5.24362]
[1742304825186,8.21852835,1907.1,1906.8,41.0638]
[1742304825187,10.901179,1906.9,1906.8,35.0]
[1742304825484,8.24466,1906.8,1906.4,5.24528]
[1742304825636,13.48919,1906.8,1906.4,5.24528]
[1742304825958,3.0,1906.8,1906.5,35.0]
[1742304826149,8.16744986,1906.6,1906.5,35.0]
[1742304826339,13.41237986,1906.6,1906.5,35.0]
[1742304826655,13.46345835,1906.6,1906.5,35.0]
[1742304826866,8.21852835,1906.6,1906.5,35.0]
[1742304827070,0.05107849,1906.6,1906.5,35.0]
[1742304827240,5.21852835,1906.6,1906.5,40.24521]
[1742304828039,0.05107849,1906.6,1906.5,40.24521]
[1742304828273,0.05107849,1906.6,1906.5,44.869298]
[1742304828771,1.3e-07,1906.6,1906.5,45.659498]
[1742304828940,5.16744986,1907.0,1906.9,6.03431]
[1742304829274,10.68744986,1907.2,1907.1,5.24356]
[1742304829474,17.352,1907.3,1907.2,5.24328]
[1742304829680,22.51944986,1907.3,1907.1,5.24349]
[1742304829843,25.51944986,1907.3,1907.2,40.24328]
[1742304830046,5.16744986,1907.3,1907.2,40.24328]
[1742304830947,3.0,1907.5,1907.4,11.30681]
[1742304830948,5.16744986,1907.5,1907.4,11.30681]
[1742304831275,6.6e-06,1907.6,1907.5,5.24246]
[1742304831692,5.16745646,1907.6,1907.5,40.24246]
[1742304832291,6.6e-06,1907.6,1907.5,40.24246]
[1742304832495,6.6e-06,1907.6,1907.5,41.60807073]
[1742304834305,6.6e-06,1907.6,1907.5,40.24246]
[1742304834746,5.16745646,1907.6,1907.5,40.24246]
[1742304834949,8.21739219,1907.6,1907.5,40.24246]
[1742304835363,8.24254,1907.5,1907.2,5.24318]
[1742304835596,8.16744986,1907.3,1907.2,10.48626]
[1742304835973,8.16744986,1907.3,1907.2,40.24308]
[1742304836288,8.2170244,1907.3,1907.2,40.24308]
[1742304836498,8.2170244,1907.3,1907.2,35.0]
[1742304836689,13.7800244,1907.3,1907.2,35.0]
[1742304836889,20.97884184,1907.3,1907.2,35.0]
[1742304837052,15.73583184,1907.3,1907.2,35.0]
[1742304837490,8.2170244,1907.3,1907.2,40.24328]
[1742304837653,3.04957454,1907.3,1907.2,40.24328]
[1742304837986,3.0,1907.3,1907.2,40.24328]
[1742304838586,8.16744986,1907.3,1907.2,35.0]
[1742304839190,3.0,1907.3,1907.2,40.24328]
[1742304839784,3.04929227,1907.3,1907.2,40.24328]
[1742304840795,3.04929227,1907.3,1907.2,35.0]
[1742304840961,3.87096648,1907.3,1907.2,35.0]
[1742304841161,15.20827648,1907.3,1907.2,35.0]
[1742304841596,3.87096648,1907.3,1907.2,35.0]
[1742304841907,5.16745646,1907.6,1907.5,5.24246]
[1742304842259,5.16745646,1907.6,1907.4,5.24267]
[1742304842500,8.16744986,1907.5,1907.4,5.24267]
[1742304843600,3.0,1907.3,1907.2,40.24309]
[1742304843765,3.0,1907.4,1907.3,5.24301]
[1742304844100,2.9827744,1907.4,1907.3,5.24301]
[1742304845199,2.9827744,1907.4,1907.2,35.0]
[1742304845399,11.26474986,1907.3,1907.2,35.0]
[1742304845600,16.50775986,1907.3,1907.2,35.0]
[1742304845817,16.50775986,1907.3,1906.7,5.24464]
[1742304845818,5.24391,1907.0,1906.7,5.24464]
[1742304846116,5.24391,1907.0,1906.5,0.7746]
[1742304846117,3.0,1906.8,1906.5,6.01977]
[1742304846270,5.16744986,1906.7,1906.5,5.24511]
[1742304846469,8.16744986,1906.7,1906.6,5.24493]
[1742304846702,8.16744986,1906.7,1906.5,5.24511]
[1742304846871,8.16744986,1906.7,1906.6,35.0]
[1742304847203,14.75329985,1906.7,1906.6,35.0]
[1742304847400,21.30859985,1906.7,1906.6,35.0]
[1742304847605,3.0,1906.6,1906.2,5.24586]
[1742304847918,3.0,1906.4,1906.2,5.24586]
[1742304848072,3.0,1906.4,1906.3,35.0]
[1742304848279,3.0,1906.4,1906.3,40.24576]
[1742304848508,3.0,1906.4,1906.3,35.0]
[1742304849222,13.41292986,1906.4,1906.3,35.0]
[1742304849521,15.36940542,1906.4,1906.3,35.0]
[1742304849710,8.70274986,1906.4,1906.3,35.0]
[1742304849880,8.16744986,1906.4,1906.3,40.24576]
[1742304850081,3.0,1906.4,1906.3,40.24576]
[1742304850276,5.16744986,1906.7,1906.6,5.24493]
[1742304850482,6.1083,1906.9,1906.7,5.24441]
[1742304850683,5.16744986,1906.8,1906.7,5.24441]
[1742304850928,8.16744986,1906.8,1906.7,5.24441]
[1742304851220,3.0,1906.7,1906.5,5.24511]
[1742304851436,3.0,1906.5,1906.3,40.24562]
[1742304851643,8.16744986,1906.4,1906.3,35.0]
[1742304852002,13.41292986,1906.4,1906.3,35.0]
[1742304852155,3.0,1906.3,1906.0,5.24637]
[1742304852312,5.16744986,1906.2,1906.1,5.24631]
[1742304852508,5.16744986,1906.2,1906.1,40.24631]
[1742304852509,3.0,1906.2,1906.1,40.24631]
[1742304853320,10.73844986,1906.6,1906.3,5.24576]
[1742304853529,12.1323,1907.0,1906.5,6.03481]
[1742304853752,5.16744986,1906.8,1906.7,5.24439]
[1742304854044,8.16744986,1906.8,1906.7,5.24439]
[1742304854960,3.0,1906.8,1906.7,6.293311]
[1742304855314,8.16744986,1906.8,1906.7,6.293311]
[1742304855558,8.16744986,1906.8,1906.7,5.24439]
[1742304856545,3.0,1906.8,1906.7,5.24439]
[1742304856918,17.345,1907.1,1906.9,5.24411]
[1742304857157,5.16744986,1907.2,1907.1,5.24356]
[1742304857534,8.16744986,1907.2,1907.1,40.24356]
[1742304857935,5.16744986,1907.2,1907.1,40.24356]
[1742304858125,5.16744986,1907.2,1907.1,35.0]
[1742304858326,16.49747485,1907.2,1906.9,5.24408]
[1742304858527,5.16744986,1907.0,1906.9,5.24408]
[1742304858729,8.16744986,1907.0,1906.9,5.24408]
[1742304858925,3.0,1906.9,1906.7,5.24454]
[1742304859231,14.02275,1907.1,1906.7,5.24454]
[1742304859434,4.76057791,1907.1,1906.6,40.24479]
[1742304859634,3.0,1906.7,1906.4,5.24545]
[1742304859832,3.40411437,1906.7,1906.3,5.24575]
[1742304860126,3.40411437,1906.7,1906.2,40.24586]
[1742304860127,0.5353,1906.5,1906.2,40.24586]
[1742304860459,10.08180581,1906.7,1906.3,5.24556]
[1742304860857,8.16744986,1906.4,1906.3,5.24556]
[1742304861053,3.0,1906.3,1906.2,40.24592]
[1742304861359,3.0,1906.3,1906.2,35.0]
[1742304861561,3.0,1906.3,1905.5,5.24782]
[1742304861562,3.0,1906.0,1905.5,0.8018]
[1742304861728,8.16744986,1905.7,1905.6,5.24751]
[1742304862057,8.16744986,1905.7,1905.6,40.24751]
[1742304862361,3.0,1905.6,1905.3,5.24831]
[1742304862536,3.0,1905.3,1905.1,5.2489]
[1742304862739,8.2489,1905.1,1904.9,40.24943]
[1742304863035,8.16744986,1905.0,1904.9,40.24943]
[1742304863869,3.0,1904.9,1904.7,10.49987]
[1742304864061,8.16744986,1904.8,1904.6,5.25037]
[1742304864232,3.0,1904.6,1904.3,6.00901]
[1742304864426,8.16744986,1904.4,1904.1,5.25171]
[1742304864638,8.16744986,1904.2,1904.0,5.25192]
[1742304864850,8.16744986,1904.2,1904.1,5.25182]
[1742304865569,3.0,1904.2,1904.0,40.777112]
[1742304865764,3.0,1904.2,1904.1,5.25182]
[1742304866259,5.25182,1904.1,1903.8,5.25247]
[1742304866423,3.0,1904.0,1903.6,5.25304]
[1742304866624,3.0,1903.8,1903.7,5.25292]
[1742304867123,3.0,1903.8,1903.6,40.25304]
[1742304867340,3.0,1903.8,1903.7,5.25292]
[1742304869162,3.0,1903.8,1903.6,45.50607]
[1742304869363,3.0,1903.8,1903.6,45.50605]
[1742304869662,3.0,1903.6,1903.3,5.25378]
[1742304869831,3.0,1903.4,1903.2,5.25428]
[1742304870027,3.0,1903.4,1903.3,5.25403]
[1742304870530,3.0,1903.4,1903.2,5.25418]
[1742304871131,3.0,1903.4,1903.0,5.25462]
[1742304871328,9.65775364,1903.4,1903.0,40.25462]
[1742304871560,3.0,1903.1,1903.0,40.25462]
[1742304871768,8.583,1903.1,1903.0,40.25462]
[1742304872270,8.583,1903.1,1902.8,5.25527]
[1742304872631,8.583,1903.1,1902.8,35.0]
[1742304872836,8.583,1903.1,1902.4,5.25651]
[1742304872837,24.75025,1902.8,1902.4,5.25632]
[1742304873045,3.0,1902.5,1902.4,5.25632]
[1742304874746,3.0,1902.5,1902.3,5.25664]
[1742304874944,3.0,1902.5,1902.3,10.51326]
[1742304875363,3.0,1902.5,1902.3,5.25662]
[1742304875765,3.0,1902.5,1902.4,5.25651]
[1742304875964,8.589,1902.5,1902.4,5.25651]
[1742304876266,15.2306091,1902.5,1902.1,40.25712]
[1742304876568,3.0,1902.2,1902.1,40.25712]
[1742304876769,8.770819,1902.1,1901.9,5.37119]
[1742304876987,37.56340528,1902.0,1901.9,0.11331]
[1742304877169,44.11916363,1902.0,1901.9,0.11331]
[1742304877338,38.86154363,1902.0,1901.9,0.11331]
[1742304877538,44.11916363,1902.0,1901.9,0.11331]
[1742304877951,38.31154363,1902.0,1901.9,0.11331]
[1742304878549,44.11916363,1902.0,1901.9,0.11331]
[1742304878755,44.65446363,1902.0,1901.9,0.11331]
[1742304879275,33.22284363,1902.0,1901.9,0.11331]
[1742304879460,37.54970528,1902.0,1901.9,0.11331]
[1742304881073,26.396,1902.0,1901.9,5.3712]
[1742304881277,26.003,1902.0,1901.9,5.3712]
[1742304881674,26.003,1902.0,1901.9,0.11331]
[1742304881857,26.5383,1902.0,1901.9,0.11331]
[1742304882038,29.49407888,1902.0,1901.9,0.11331]
[1742304883246,20.376,1902.0,1901.9,5.3712]
[1742304883454,26.006,1902.0,1901.9,0.11331]
[1742304884887,23.005,1902.0,1901.9,5.3712]
[1742304885071,26.005,1902.0,1901.9,5.3712]
[1742304885584,26.005,1902.0,1901.9,0.11331]
[1742304886152,25.998,1902.0,1901.9,0.11331]
[1742304886654,38.1653829,1902.0,1901.9,0.11331]
[1742304886863,39.2506829,1902.0,1901.9,0.11331]
[1742304887182,5.25865,1901.7,1901.1,0.01]
[1742304887364,3.0,1901.5,1901.3,5.25952]
[1742304887568,3.0,1901.5,1901.4,5.25928]
[1742304887905,12.54114809,1901.5,1901.2,5.25982]
[1742304888047,7.99340528,1901.3,1901.1,0.01]
[1742304888247,26.18613,1901.2,1901.1,0.01]
[1742304888507,30.10427809,1901.2,1901.1,0.01]
[1742304888793,30.58446659,1901.2,1901.1,0.01]
[1742304889297,32.3904466,1901.2,1901.1,0.01]
[1742304889451,31.13446659,1901.2,1901.1,0.01]
[1742304889652,34.03466144,1901.2,1901.1,0.01]
[1742304891691,28.22483144,1901.2,1901.1,0.01]
[1742304891874,33.84583144,1901.2,1901.1,0.01]
[1742304892253,31.71594569,1901.2,1901.1,0.01]
[1742304892454,37.52577569,1901.2,1901.1,0.01]
[1742304892697,38.15787042,1901.2,1901.1,0.01]
[1742304893053,31.71594569,1901.2,1901.1,0.01]
[1742304893478,23.09494569,1901.2,1901.1,5.27011]
[1742304893688,18.6414976,1901.2,1901.1,5.27011]